fUSD/lending_fUSD_20250123
["ID","MTS","AMOUNT","RATE_DAILY","PERIOD"]
[350159145,1737660653086,-608.16,0.00017807,2]
[350159146,1737660653096,-500.0,0.00017807,2]
[350159147,1737660653105,-724.53,0.00017807,2]
[350159148,1737660653115,-855.54,0.00017807,2]
[350159149,1737660653125,-641.11,0.00017807,2]
[350159150,1737660653135,-500.0,0.00017807,2]
[350159151,1737660653145,-1332.55,0.00017807,2]
[350159152,1737660653155,-565.08,0.00017807,2]
[350159153,1737660653165,-1129.12,0.00017807,2]
[350159154,1737660653175,-535.73,0.00017807,2]
[350159155,1737660653185,-643.19289912,0.00017807,2]
[350159156,1737660653196,-106.16399479,0.00017807,2]
[350159157,1737660653210,-449.81600521,0.00017807,2]
[350159158,1737660653220,-500.0,0.00017807,2]
[350159159,1737660653230,-409.27640142,0.00017807,2]
[350159160,1737660653246,-90.72359858,0.00017807,2]
[350159161,1737660653256,-151.0,0.00017807,2]
[350159162,1737660653266,-772.84,0.00017807,2]
[350159163,1737660653277,-2965.73,0.00017807,2]
[350159164,1737660653287,-500.0,0.00017807,2]
[350159165,1737660653301,-1149.68,0.00017807,2]
[350159166,1737660653311,-500.0,0.00017807,2]
[350159167,1737660653321,-755.23,0.00017807,2]
[350159168,1737660653330,-862.75,0.00017807,2]
[350159169,1737660653342,-151.0,0.00017807,2]
[350159170,1737660653351,-151.0,0.00017807,2]
[350159171,1737660653361,-500.0,0.00017807,2]
[350159172,1737660653372,-500.0,0.00017807,2]
[350159173,1737660653382,-796.13,0.00017807,2]
[350159174,1737660653391,-383.54200186,0.00017807,2]
[350159175,1737660653401,-805.63,0.00017807,2]
[350159176,1737660653411,-1391.92,0.00017807,2]
[350159177,1737660653421,-500.0,0.00017807,2]
[350159178,1737660653431,-500.0,0.00017807,2]
[350159179,1737660653441,-500.0,0.00017807,2]
[350159180,1737660653451,-500.0,0.00017807,2]
[350159181,1737660653461,-2468.27,0.00017807,2]
[350159182,1737660653471,-539.25,0.00017807,2]
[350159183,1737660653481,-500.0,0.00017807,2]
[350159184,1737660653491,-278.51456333,0.00017807,2]
[350159185,1737660653587,-878.01204867,0.00017807,2]
[350159186,1737660653598,-1156.526612,0.00017807,2]
[350159187,1737660653608,-500.0,0.00017807,2]
[350159188,1737660653619,-151.0,0.00017807,2]
[350159189,1737660653629,-567.93,0.00017807,2]
[350159190,1737660653639,-266.944085,0.00017807,2]
[350159191,1737660653649,-500.0,0.00017807,2]
[350159192,1737660653659,-518.53,0.00017807,2]
[350159193,1737660653668,-764.13,0.00017807,2]
[350159194,1737660653678,-500.0,0.00017807,2]
[350159195,1737660653688,-786.4,0.00017807,2]
[350159196,1737660653699,-151.0,0.00017807,2]
[350159197,1737660653709,-711.52,0.00017807,2]
[350159198,1737660653719,-151.0,0.00017807,2]
[350159199,1737660653728,-500.0,0.00017808,2]
[350159200,1737660653738,-500.0,0.00017808,2]
[350159201,1737660653748,-500.0,0.00017808,2]
[350159202,1737660653757,-500.0,0.00017808,2]
[350159203,1737660653766,-500.0,0.00017808,2]
[350159204,1737660653777,-500.0,0.00017808,2]
[350159205,1737660653786,-500.0,0.00017808,2]
[350159206,1737660653802,-500.0,0.00017808,2]
[350159207,1737660653812,-500.0,0.00017808,2]
[350159208,1737660653822,-505.91,0.00017808,2]
[350159209,1737660653831,-644.14,0.00017808,2]
[350159210,1737660653841,-507.09,0.00017808,2]
[350159211,1737660653851,-500.0,0.00017808,2]
[350159212,1737660653860,-648.9,0.00017808,2]
[350159213,1737660653869,-1678.74,0.00017808,2]
[350159214,1737660653879,-500.0,0.00017808,2]
[350159215,1737660653888,-354.29269203,0.00017808,2]
[350159216,1737660773233,500.0,0.00022,30]
[350159217,1737660806972,153.82,0.000223,31]
[350159218,1737660807020,153.82,0.000223,31]
[350159219,1737660807417,153.82,0.000223,31]
[350159220,1737660807464,153.82,0.000223,31]
[350159221,1737660807517,153.82,0.000223,31]
[350159222,1737660807563,153.82,0.000223,31]
[350159223,1737660807634,153.82,0.000223,31]
[350159226,1737660899670,153.53,0.0001668,30]
[350159228,1737661397952,-1000.0,0.00013753,5]
[350159238,1737661662645,162.32,0.00010137,2]
[350159258,1737661831937,-637.16131656,0.00013278,2]
[350159259,1737661831949,-72.29868344,0.00013278,2]
[350159260,1737661831958,-200.0,0.00013684,2]
[350159261,1737661831968,-550.0,0.00015,2]
[350159262,1737661831978,-229.12,0.00015076,2]
[350159263,1737661831987,-182.41,0.00015093,2]
[350159264,1737661831996,-428.43,0.00015093,2]
[350159265,1737661832006,-834.22738291,0.00015093,2]
[350159266,1737661832015,-250.0,0.00015203,2]
[350159267,1737661832025,-245.61,0.00015203,2]
[350159268,1737661832035,-10.37510872,0.00015542,2]
[350159269,1737661832199,-699.08489128,0.00015542,2]
[350159270,1737661832208,-152.49,0.00015724,2]
[350159271,1737661832217,-152.49,0.00015731,2]
[350159272,1737661832227,-152.49,0.00015737,2]
[350159273,1737661832236,-152.49,0.00015744,2]
[350159274,1737661832245,-152.49,0.0001575,2]
[350159275,1737661832254,-152.49,0.00015757,2]
[350159276,1737661832264,-152.49,0.00015763,2]
[350159277,1737661832273,-152.49,0.0001577,2]
[350159278,1737661832283,-250.0,0.00015774,2]
[350159279,1737661832292,-152.49,0.00015776,2]
[350159280,1737661832302,-152.49,0.00015783,2]
[350159281,1737661832312,-152.49,0.0001579,2]
[350159282,1737661832323,-152.49,0.00015796,2]
[350159283,1737661832334,-727.05,0.00015799,2]
[350159284,1737661832344,-250.0,0.000158,2]
[350159285,1737661832354,-152.49,0.00015803,2]
[350159286,1737661832363,-300.0,0.00016078,2]
[350159287,1737661832372,-1000.0,0.00016078,2]
[350159288,1737661832381,-1204.0,0.00016115,2]
[350159289,1737661832391,-985.98,0.00016119,2]
[350159290,1737661832401,-161.32,0.00016302,2]
[350159291,1737661832410,-502.37038407,0.00016338,2]
[350159292,1737661832419,-150.0,0.00016356,2]
[350159293,1737661832428,-500.0,0.00016438,2]
[350159294,1737661832438,-500.0,0.00016438,2]
[350159295,1737661832447,-500.0,0.00016438,2]
[350159296,1737661832456,-64.59980059,0.00016438,2]
[350159297,1737661832467,-435.40019941,0.00016438,2]
[350159298,1737661832477,-500.0,0.00016438,2]
[350159299,1737661832487,-64.99480059,0.00016438,2]
[350159300,1737661832499,-303.02777043,0.00016438,2]
[350159301,1737661832515,-131.97742898,0.00016438,2]
[350159302,1737661832525,-500.0,0.00016438,2]
[350159303,1737661832534,-68.30217872,0.00016438,2]
[350159424,1737661837765,-431.69782128,0.00016438,2]
[350159425,1737661837775,-500.0,0.00016438,2]
[350159426,1737661837785,-500.0,0.00016438,2]
[350159427,1737661837794,-433.48575695,0.00016438,2]
[350159428,1737661837803,-267.01642177,0.00016438,2]
[350159429,1737661837819,-232.98357823,0.00016438,2]
[350159430,1737661837829,-500.0,0.00016438,2]
[350159431,1737661837839,-500.0,0.00016438,2]
[350159432,1737661837848,-500.0,0.00016438,2]
[350159433,1737661837857,-500.0,0.00016438,2]
[350159434,1737661837866,-500.0,0.00016438,2]
[350159435,1737661837875,-110.33939514,0.00016438,2]
[350159436,1737661837888,-531.3971838,0.00016438,2]
[350159437,1737661837897,-500.0,0.00016438,2]
[350159438,1737661837907,-500.0,0.00016438,2]
[350159439,1737661837917,-500.0,0.00016438,2]
[350159440,1737661837926,-500.0,0.00016438,2]
[350159441,1737661837935,-500.0,0.00016438,2]
[350159442,1737661837945,-500.0,0.00016438,2]
[350159443,1737661837954,-500.0,0.00016438,2]
[350159444,1737661837963,-225.7509987,0.00016438,2]
[350159445,1737661837979,-274.2490013,0.00016438,2]
[350159446,1737661837988,-249.4009987,0.00016438,2]
[350159447,1737661838000,-250.5990013,0.00016438,2]
[350159448,1737661838010,-500.0,0.00016438,2]
[350159449,1737661838019,-500.0,0.00016438,2]
[350159450,1737661838029,-507.2859743,0.00016438,2]
[350159451,1737661838038,-500.0,0.00016438,2]
[350159452,1737661838048,-500.0,0.00016438,2]
[350159453,1737661838057,-373.6150244,0.00016438,2]
[350159454,1737661838068,-126.3849756,0.00016438,2]
[350159455,1737661838079,-500.0,0.00016438,2]
[350159456,1737661838089,-500.0,0.00016438,2]
[350159457,1737661838101,-622.45346948,0.00016438,2]
[350159458,1737661838111,-469.19382604,0.00016438,2]
[350159459,1737661838122,-500.0,0.00016438,2]
[350159460,1737661838132,-481.92564888,0.00016438,2]
[350159461,1737661838143,-18.07435112,0.00016438,2]
[350159462,1737661838153,-500.0,0.00016438,2]
[350159463,1737661838163,-436.44411084,0.00016438,2]
[350159464,1737661838174,-500.0,0.00016438,2]
[350159465,1737661838184,-257.42242178,0.00016438,2]
[350159466,1737661838203,-242.57757822,0.00016438,2]
[350159467,1737661838213,-56.80192194,0.00016438,2]
[350159468,1737661838272,-443.19807806,0.00016438,2]
[350159469,1737661838282,-500.0,0.00016438,2]
[350159470,1737661838292,-500.0,0.00016438,2]
[350159471,1737661838301,-500.0,0.00016438,2]
[350159472,1737661838311,-500.0,0.00016438,2]
[350159473,1737661838319,-500.0,0.00016438,2]
[350159474,1737661838330,-500.0,0.00016438,2]
[350159475,1737661838339,-500.0,0.00016438,2]
[350159476,1737661838348,-500.0,0.00016438,2]
[350159477,1737661838359,-500.0,0.00016438,2]
[350159479,1737661838368,-500.0,0.00016438,2]
[350159481,1737661838378,-500.0,0.00016438,2]
[350159483,1737661838387,-500.0,0.00016438,2]
[350159484,1737661838397,-539.32198703,0.00016438,2]
[350159485,1737661838406,-500.0,0.00016438,2]
[350159486,1737661838415,-426.14099386,0.00016438,2]
[350159487,1737661838425,-500.0,0.00016438,2]
[350159488,1737661838434,-500.0,0.00016438,2]
[350159489,1737661838443,-500.0,0.00016438,2]
[350159490,1737661838452,-500.0,0.00016438,2]
[350159491,1737661838462,-500.0,0.00016438,2]
[350159492,1737661838471,-500.0,0.00016438,2]
[350159493,1737661838481,-500.0,0.00016438,2]
[350159494,1737661838491,-500.0,0.00016438,2]
[350159495,1737661838500,-500.0,0.00016438,2]
[350159496,1737661838510,-188.04104638,0.00016438,2]
[350159497,1737661838519,-500.0,0.00016438,2]
[350159498,1737661838529,-500.0,0.00016438,2]
[350159499,1737661838539,-500.0,0.00016438,2]
[350159500,1737661838548,-500.0,0.00016438,2]
[350159501,1737661838558,-500.0,0.00016438,2]
[350159502,1737661838571,-500.0,0.00016438,2]
[350159503,1737661838581,-428.46480967,0.00016438,2]
[350159504,1737661838593,-71.53519033,0.00016438,2]
[350159505,1737661838602,-500.0,0.00016438,2]
[350159506,1737661838611,-260.53472526,0.00016438,2]
[350159507,1737661838632,-239.46527474,0.00016438,2]
[350159508,1737661838641,-500.0,0.00016438,2]
[350159509,1737661838650,-500.0,0.00016438,2]
[350159510,1737661838659,-500.0,0.00016438,2]
[350159511,1737661838668,-500.0,0.00016438,2]
[350159512,1737661838677,-500.0,0.00016438,2]
[350159513,1737661838687,-500.0,0.00016438,2]
[350159514,1737661838696,-500.0,0.00016438,2]
[350159515,1737661838705,-500.0,0.00016438,2]
[350159516,1737661838715,-500.0,0.00016438,2]
[350159517,1737661838724,-500.0,0.00016438,2]
[350159518,1737661838734,-500.0,0.00016438,2]
[350159519,1737661838743,-500.0,0.00016438,2]
[350159520,1737661838752,-500.0,0.00016438,2]
[350159521,1737661838762,-500.0,0.00016438,2]
[350159522,1737661838771,-500.0,0.00016438,2]
[350159523,1737661838780,-500.0,0.00016438,2]
[350159524,1737661838789,-500.0,0.00016438,2]
[350159525,1737661838798,-500.0,0.00016438,2]
[350159526,1737661838807,-500.0,0.00016438,2]
[350159527,1737661838815,-500.0,0.00016438,2]
[350159528,1737661838826,-500.0,0.00016438,2]
[350159529,1737661838835,-500.0,0.00016438,2]
[350159530,1737661838844,-500.0,0.00016438,2]
[350159531,1737661838853,-500.0,0.00016438,2]
[350159532,1737661838863,-500.0,0.00016438,2]
[350159533,1737661838871,-500.0,0.00016438,2]
[350159534,1737661838882,-500.0,0.00016438,2]
[350159535,1737661838892,-500.0,0.00016438,2]
[350159536,1737661838901,-584.41976524,0.00016438,2]
[350159537,1737661838911,-500.0,0.00016438,2]
[350159538,1737661838921,-500.0,0.00016438,2]
[350159539,1737661838931,-500.0,0.00016438,2]
[350159540,1737661838941,-500.0,0.00016438,2]
[350159541,1737661838951,-500.0,0.00016438,2]
[350159542,1737661838961,-500.0,0.00016438,2]
[350159543,1737661838970,-500.0,0.00016438,2]
[350159544,1737661838978,-500.0,0.00016438,2]
[350159545,1737661838987,-500.0,0.00016438,2]
[350159546,1737661838996,-500.0,0.00016438,2]
[350159547,1737661839005,-500.0,0.00016438,2]
[350159548,1737661839014,-500.0,0.00016438,2]
[350159549,1737661839024,-500.0,0.00016438,2]
[350159550,1737661839033,-500.0,0.00016438,2]
[350159551,1737661839042,-500.0,0.00016438,2]
[350159552,1737661839051,-500.0,0.00016438,2]
[350159553,1737661839060,-500.0,0.00016438,2]
[350159554,1737661839068,-500.0,0.00016438,2]
[350159555,1737661839079,-500.0,0.00016438,2]
[350159556,1737661839091,-500.0,0.00016438,2]
[350159557,1737661839101,-500.0,0.00016438,2]
[350159558,1737661839111,-500.0,0.00016438,2]
[350159559,1737661839121,-500.0,0.00016438,2]
[350159560,1737661839133,-500.0,0.00016438,2]
[350159561,1737661839142,-500.0,0.00016438,2]
[350159562,1737661839151,-500.0,0.00016438,2]
[350159563,1737661839161,-500.0,0.00016438,2]
[350159564,1737661839171,-500.0,0.00016438,2]
[350159565,1737661839181,-512.2144283,0.00016438,2]
[350159566,1737661839191,-265.88374902,0.00016438,2]
[350159567,1737661839200,-500.0,0.00016438,2]
[350159568,1737661839209,-212.95659483,0.00016438,2]
[350159569,1737661839218,-500.0,0.00016438,2]
[350159570,1737661839227,-500.0,0.00016438,2]
[350159571,1737661839237,-500.0,0.00016438,2]
[350159572,1737661839246,-500.0,0.00016438,2]
[350159573,1737661839256,-500.0,0.00016438,2]
[350159574,1737661839265,-500.0,0.00016438,2]
[350159575,1737661839274,-500.0,0.00016438,2]
[350159576,1737661839283,-500.0,0.00016438,2]
[350159577,1737661839293,-531.58912321,0.00016438,2]
[350159578,1737661839302,-500.0,0.00016438,2]
[350159579,1737661839311,-500.0,0.00016438,2]
[350159580,1737661839322,-500.0,0.00016438,2]
[350159581,1737661839336,-500.0,0.00016438,2]
[350159582,1737661839347,-418.87,0.00016438,2]
[350159583,1737661839356,-500.0,0.00016438,2]
[350159584,1737661839367,-500.0,0.00016438,2]
[350159585,1737661839376,-500.0,0.00016438,2]
[350159586,1737661839386,-500.0,0.00016438,2]
[350159587,1737661839395,-500.0,0.00016438,2]
[350159588,1737661839405,-500.0,0.00016438,2]
[350159589,1737661839414,-284.33399713,0.00016438,2]
[350159590,1737661839423,-500.0,0.00016438,2]
[350159591,1737661839432,-500.0,0.00016438,2]
[350159592,1737661839443,-261.51008801,0.00016438,2]
[350159593,1737661839455,-238.48991199,0.00016438,2]
[350159594,1737661839465,-500.0,0.00016438,2]
[350159595,1737661839474,-500.0,0.00016438,2]
[350159596,1737661839485,-31.50767801,0.00016438,2]
[350159597,1737661839497,-468.49232199,0.00016438,2]
[350159598,1737661839506,-500.0,0.00016438,2]
[350159599,1737661839517,-500.0,0.00016438,2]
[350159600,1737661839526,-500.0,0.00016438,2]
[350159601,1737661839535,-420.10768321,0.00016438,2]
[350159602,1737661839547,-79.89231679,0.00016438,2]
[350159603,1737661839557,-193.79983161,0.00016438,2]
[350159604,1737661839567,-403.30670025,0.00016438,2]
[350159606,1737661839876,-96.69329975,0.00016438,2]
[350159607,1737661839886,-500.0,0.00016438,2]
[350159608,1737661839895,-500.0,0.00016438,2]
[350159609,1737661839905,-500.0,0.00016438,2]
[350159610,1737661839915,-500.0,0.00016438,2]
[350159611,1737661839924,-500.0,0.00016438,2]
[350159612,1737661839934,-530.11,0.00016438,2]
[350159613,1737661839945,-500.0,0.00016438,2]
[350159614,1737661839956,-500.0,0.00016438,2]
[350159615,1737661839966,-500.0,0.00016438,2]
[350159616,1737661839976,-344.94452984,0.00016438,2]
[350159617,1737661839991,-155.05547016,0.00016438,2]
[350159618,1737661840001,-500.0,0.00016438,2]
[350159619,1737661840011,-500.0,0.00016438,2]
[350159620,1737661840020,-500.0,0.00016438,2]
[350159621,1737661840030,-500.0,0.00016438,2]
[350159622,1737661840040,-500.0,0.00016438,2]
[350159623,1737661840049,-500.0,0.00016438,2]
[350159624,1737661840059,-500.0,0.00016438,2]
[350159625,1737661840068,-500.0,0.00016438,2]
[350159626,1737661840079,-500.0,0.00016438,2]
[350159627,1737661840090,-500.0,0.00016438,2]
[350159628,1737661840100,-500.0,0.00016438,2]
[350159629,1737661840110,-500.0,0.00016438,2]
[350159630,1737661840119,-500.0,0.00016438,2]
[350159631,1737661840130,-500.0,0.00016438,2]
[350159632,1737661840139,-500.0,0.00016438,2]
[350159633,1737661840149,-500.0,0.00016438,2]
[350159634,1737661840158,-500.0,0.00016438,2]
[350159635,1737661840167,-500.0,0.00016438,2]
[350159636,1737661840176,-501.32612881,0.00016438,2]
[350159637,1737661840186,-417.39452726,0.00016438,2]
[350159638,1737661840195,-500.0,0.00016438,2]
[350159639,1737661840205,-500.0,0.00016438,2]
[350159640,1737661840214,-500.0,0.00016438,2]
[350159641,1737661840225,-500.0,0.00016438,2]
[350159642,1737661840234,-500.0,0.00016438,2]
[350159643,1737661840244,-503.55387601,0.00016438,2]
[350159644,1737661840254,-500.0,0.00016438,2]
[350159645,1737661840264,-174.16,0.00016438,2]
[350159646,1737661840274,-500.0,0.00016438,2]
[350159647,1737661840284,-500.0,0.00016438,2]
[350159648,1737661840293,-220.2646926,0.00016438,2]
[350159649,1737661840303,-2290.50371318,0.00016444,2]
[350159650,1737661840313,-1005.13273717,0.00016454,2]
[350159651,1737661840323,-5000.0,0.00016454,2]
[350159652,1737661840340,-626.15,0.00016543,2]
[350159653,1737661840350,-848.51,0.00016543,3]
[350159654,1737661840361,-507.51,0.00016552,2]
[350159656,1737661840371,-500.0,0.00016552,2]
[350159658,1737661840381,-1305.83,0.00016552,2]
[350159676,1737661840555,-500.0,0.00016552,2]
[350159677,1737661840580,-500.0,0.00016552,2]
[350159678,1737661840590,-983.84,0.00016552,2]
[350159679,1737661840599,-562.85,0.00016552,2]
[350159680,1737661840609,-560.60911462,0.00016552,2]
[350159681,1737661840618,-807.3,0.00016552,2]
[350159682,1737661840628,-542.36,0.00016552,2]
[350159683,1737661840638,-599.97,0.00016552,2]
[350159684,1737661840648,-570.14,0.00016552,2]
[350159685,1737661840657,-1302.91,0.00016552,2]
[350159686,1737661840669,-1180.67,0.00016552,2]
[350159687,1737661840679,-531.29,0.00016552,2]
[350159688,1737661840688,-500.0,0.00016552,2]
[350159689,1737661840699,-1132.28,0.00016552,2]
[350159690,1737661840708,-500.0,0.00016552,2]
[350159691,1737661840719,-500.0,0.00016552,2]
[350159692,1737661840728,-500.0,0.00016552,2]
[350159693,1737661840739,-955.81,0.00016552,2]
[350159694,1737661840748,-1414.06,0.00016552,2]
[350159695,1737661840758,-500.0,0.00016552,2]
[350159696,1737661840768,-500.0,0.00016552,2]
[350159697,1737661840777,-500.0,0.00016552,2]
[350159698,1737661840787,-500.0,0.00016552,2]
[350159699,1737661840796,-1103.14,0.00016552,2]
[350159700,1737661840805,-760.84,0.00016552,2]
[350159701,1737661840814,-500.0,0.00016552,2]
[350159702,1737661840823,-567.03,0.00016552,2]
[350159703,1737661840837,-500.0,0.00016552,2]
[350159704,1737661840846,-500.0,0.00016552,2]
[350159705,1737661840856,-157.44535518,0.00016552,2]
[350159706,1737661840866,-500.0,0.00016553,2]
[350159707,1737661840875,-500.0,0.00016553,2]
[350159708,1737661840885,-500.0,0.00016553,2]
[350159709,1737661840894,-500.0,0.00016553,2]
[350159710,1737661840904,-500.0,0.00016553,2]
[350159711,1737661840914,-578.13,0.00016553,2]
[350159712,1737661840923,-500.0,0.00016553,2]
[350159713,1737661840933,-500.0,0.00016553,2]
[350159714,1737661840942,-500.0,0.00016553,2]
[350159715,1737661840951,-500.0,0.00016553,2]
[350159716,1737661840961,-500.0,0.00016553,2]
[350159717,1737661840971,-500.0,0.00016553,2]
[350159718,1737661840980,-500.0,0.00016553,2]
[350159719,1737661840989,-500.0,0.00016553,2]
[350159720,1737661840998,-500.0,0.00016553,2]
[350159721,1737661841007,-500.0,0.00016553,2]
[350159722,1737661841017,-500.0,0.00016553,2]
[350159723,1737661841026,-500.0,0.00016553,2]
[350159724,1737661841035,-500.0,0.00016553,2]
[350159725,1737661841045,-500.0,0.00016553,2]
[350159726,1737661841054,-500.0,0.00016553,2]
[350159727,1737661841064,-500.0,0.00016553,2]
[350159728,1737661841075,-500.0,0.00016553,2]
[350159729,1737661841093,-500.0,0.00016553,2]
[350159730,1737661841103,-500.0,0.00016553,2]
[350159731,1737661841112,-500.0,0.00016553,2]
[350159732,1737661841122,-500.0,0.00016553,2]
[350159733,1737661841132,-500.0,0.00016553,2]
[350159734,1737661841141,-500.0,0.00016553,2]
[350159735,1737661841151,-331.33888958,0.00016553,2]
[350159736,1737661841160,-500.0,0.00016553,2]
[350159737,1737661841171,-500.0,0.00016553,2]
[350159738,1737661841182,-500.0,0.00016553,2]
[350159739,1737661841191,-500.0,0.00016553,2]
[350159740,1737661841200,-500.0,0.00016553,2]
[350159741,1737661841209,-426.545841,0.00016553,2]
[350159742,1737661841218,-500.0,0.00016553,2]
[350159743,1737661841227,-500.0,0.00016553,2]
[350159744,1737661841237,-500.0,0.00016553,2]
[350159745,1737661841246,-500.0,0.00016553,2]
[350159746,1737661841254,-500.0,0.00016553,2]
[350159747,1737661841264,-500.0,0.00016553,2]
[350159748,1737661841272,-500.0,0.00016553,2]
[350159749,1737661841281,-500.0,0.00016553,2]
[350159750,1737661841290,-500.0,0.00016553,2]
[350159751,1737661841299,-275.518056,0.00016553,2]
[350159752,1737661841310,-500.0,0.00016553,2]
[350159753,1737661841319,-500.0,0.00016553,2]
[350159754,1737661841330,-500.0,0.00016553,2]
[350159755,1737661841340,-500.0,0.00016553,2]
[350159756,1737661841349,-500.0,0.00016553,2]
[350159757,1737661841359,-500.0,0.00016553,2]
[350159758,1737661841368,-500.0,0.00016553,2]
[350159759,1737661841377,-500.0,0.00016553,2]
[350159760,1737661841387,-500.0,0.00016553,2]
[350159761,1737661841396,-500.0,0.00016553,2]
[350159762,1737661841405,-500.0,0.00016553,2]
[350159763,1737661841414,-500.0,0.00016553,2]
[350159764,1737661841423,-500.0,0.00016553,2]
[350159765,1737661841433,-500.0,0.00016553,2]
[350159766,1737661841442,-500.0,0.00016553,2]
[350159767,1737661841452,-500.0,0.00016553,2]
[350159768,1737661841461,-500.0,0.00016553,2]
[350159769,1737661841470,-500.0,0.00016553,2]
[350159770,1737661841479,-500.0,0.00016553,2]
[350159771,1737661841488,-500.0,0.00016553,2]
[350159772,1737661841498,-500.0,0.00016553,2]
[350159773,1737661841507,-500.0,0.00016553,2]
[350159774,1737661841517,-500.0,0.00016553,2]
[350159775,1737661841526,-500.0,0.00016553,2]
[350159776,1737661841536,-500.0,0.00016553,2]
[350159777,1737661841546,-609.5,0.00016553,2]
[350159778,1737661841555,-500.0,0.00016553,2]
[350159779,1737661841565,-500.0,0.00016553,2]
[350159780,1737661841574,-550.17754865,0.00016553,2]
[350159781,1737661841587,-500.0,0.00016553,2]
[350159782,1737661841597,-500.0,0.00016553,2]
[350159783,1737661841606,-500.0,0.00016553,2]
[350159784,1737661841615,-500.0,0.00016553,2]
[350159785,1737661841624,-500.0,0.00016553,2]
[350159786,1737661841633,-500.0,0.00016553,2]
[350159787,1737661841643,-500.0,0.00016553,2]
[350159788,1737661841652,-500.0,0.00016553,2]
[350159789,1737661841661,-500.0,0.00016553,2]
[350159790,1737661841671,-500.0,0.00016553,2]
[350159791,1737661841680,-500.0,0.00016553,2]
[350159792,1737661841690,-500.0,0.00016553,2]
[350159793,1737661841699,-500.0,0.00016553,2]
[350159794,1737661841708,-500.0,0.00016553,2]
[350159795,1737661841718,-500.0,0.00016553,2]
[350159796,1737661841727,-500.0,0.00016553,2]
[350159797,1737661841736,-500.0,0.00016553,2]
[350159798,1737661841745,-500.0,0.00016553,2]
[350159799,1737661841754,-500.0,0.00016553,2]
[350159800,1737661841763,-633.15718306,0.00016553,2]
[350159801,1737661841772,-500.0,0.00016553,2]
[350159802,1737661841782,-500.0,0.00016553,2]
[350159803,1737661841791,-500.0,0.00016553,2]
[350159804,1737661841801,-500.0,0.00016553,2]
[350159805,1737661841810,-500.0,0.00016553,2]
[350159806,1737661841819,-500.0,0.00016553,2]
[350159807,1737661841831,-500.0,0.00016553,2]
[350159808,1737661841841,-500.0,0.00016553,2]
[350159809,1737661841850,-500.0,0.00016553,2]
[350159810,1737661841859,-500.0,0.00016553,2]
[350159811,1737661841868,-500.0,0.00016553,2]
[350159812,1737661841879,-500.0,0.00016553,2]
[350159813,1737661841888,-858.33,0.00016553,2]
[350159814,1737661841897,-500.0,0.00016553,2]
[350159815,1737661841906,-500.0,0.00016553,2]
[350159816,1737661841916,-1070.96,0.00016553,2]
[350159817,1737661841925,-500.0,0.00016553,2]
[350159818,1737661841934,-500.0,0.00016553,2]